Cogmind - Beta 16 @@@ ROGUE MODE // 2025.11.24 @ 04:39:45 Player: Maxfecteau Result: Destroyed by Y-72 Warden with Quantum Rifle Performance ------------- Evolutions (6) 3000 Regions Visited (19) 3800 Robots Destroyed (104) 520 Value Destroyed (3082) 3082 Prototype IDs (48) 960 Alien Tech Used (1) 200 Bonus (2282) 2282 TOTAL SCORE: 13844 Bonus ------- Follower Combat Kills 982 Met Imprinter 300 Met Warlord at Base 500 MAIN.C Attacked Warlord 500 Cogmind --------- Core Integrity 0/1150 Matter 265/300 Energy 95/100 System Corruption 0% Temperature Cool (9) Movement Core (50) Location -4/Archives Parts ------- > --- POWER (2) -------- (None) > --- PROPULSION (6) --- (None) > --- UTILITY (9) ------ Advanced Melee Analysis Suite > --- WEAPON (3) ------- Lance > --- INVENTORY (5) ---- Improved Phase Shifter Improved Proton Missile Launcher Improved Datajack Peak State ------------ > --- POWER ------------ F-cell Engine Micro Fission Core > --- PROPULSION ------- Advanced VSS Leg Flying NPA-FPD Exoskeleton Impulse Thruster Impulse Thruster Cooled Impulse Thruster Cooled Impulse Thruster > --- UTILITY ---------- Armored Scrap Engine Spectral Analyzer Advanced Sensor Array Advanced Signal Interpreter Improved Transmission Jammer Jamming Amplifier Advanced ECM Suite Improved Hacking Suite > --- WEAPON ----------- Lance Vortex Lance Vortex Lance > --- INVENTORY -------- Long-range Terrain Scanner Transmission Jammer ECM Suite Improved Proton Missile Launcher Improved Plasma Cutter [Rating: 141] Favorites ----------- Power F-cell Engine Engine F-cell Engine Power Core Nuclear Core Reactor Constructs Propulsion Improved VTOL Module Treads Light Treads Leg Aluminum Leg Wheel Subdweller Monowheel Hover Unit Cooled Antigrav System Flight Unit Improved VTOL Module Utility ECM Suite Device ECM Suite Storage Large Storage Unit Processor Improved Signal Interpreter Hackware Improved Hacking Suite Protection Improved Light Armor Plating Weapon Enhanced Autogun Energy Gun EM Pulse Gun Energy Cannon Beam Cannon Ballistic Gun Enhanced Autogun Ballistic Cannon Mass Driver Launcher Mini Grenade Launcher Special Weapon Improved Plasma Cutter Impact Weapon Great Maul Piercing Weapon Lance Special Melee Weapon Improved Datajack Build | -11 -10 -10 -8 -8 -8 -6 -6 -6 -6 -5 -5 -5 -5 -5 -4 -4 -4 -4 -4 ------- Run | Yrd Mat Sub Mat Sto Rec Fac Low Low Zio Pro Fac Upp Upp War Pro Fac Ext Cet Arc Slots Evolved 12 | . . . 4 . . 4 . . . . 2 . . . . 2 . . . Power 1 | . . . . . . . . . . . 1 . . . . . . . . Propulsion 4 | . . . 2 . . 1 . . . . 1 . . . . . . . . Utility 7 | . . . 2 . . 3 . . . . . . . . . 2 . . . Weapon . | . . . . . . . . . . . . . . . . . . . . Parts Attached 114 | 7 5 10 6 16 5 13 . . 3 4 4 3 3 13 . 16 5 1 . Power 15 | 1 1 3 1 . 1 2 . . . . 1 . . . . 2 3 . . Engine 7 | 1 1 3 . . 1 1 . . . . . . . . . . . . . Core 7 | . . . 1 . . 1 . . . . 1 . . . . 1 3 . . Reactor 1 | . . . . . . . . . . . . . . . . 1 . . . Propulsion 31 | 2 2 1 2 6 2 5 . . . . 2 1 . 4 . 4 . . . Treads 10 | . 2 . 1 5 2 . . . . . . . . . . . . . . Leg 6 | 2 . . 1 . . . . . . . 1 . . 1 . 1 . . . Wheel 1 | . . 1 . . . . . . . . . . . . . . . . . Hover 1 | . . . . . . . . . . . . . . 1 . . . . . Flight 13 | . . . . 1 . 5 . . . . 1 1 . 2 . 3 . . . Utility 38 | 2 2 2 3 4 1 4 . . 2 2 1 1 1 3 . 8 1 1 . Device 25 | 1 . 2 2 3 1 2 . . 2 1 1 1 . 2 . 6 1 . . Storage 4 | 1 2 . . . . . . . . 1 . . . . . . . . . Processor 5 | . . . . . . 1 . . . . . . 1 1 . 1 . 1 . Hackware 2 | . . . . . . 1 . . . . . . . . . 1 . . . Protection 2 | . . . 1 1 . . . . . . . . . . . . . . . Artifact . | . . . . . . . . . . . . . . . . . . . . Weapon 30 | 2 . 4 . 6 1 2 . . 1 2 . 1 2 6 . 2 1 . . Energy Gun 4 | 2 . 1 . 1 . . . . . . . . . . . . . . . Energy Cannon 3 | . . 1 . . . . . . . . . . 1 1 . . . . . Ballistic Gun 5 | . . 2 . 3 . . . . . . . . . . . . . . . Ballistic Cannon 1 | . . . . . . . . . . . . . . 1 . . . . . Launcher 7 | . . . . 2 . 1 . . . . . . 1 1 . 2 . . . Special Weapon 1 | . . . . . . . . . . . . . . 1 . . . . . Impact Weapon 2 | . . . . . 1 1 . . . . . . . . . . . . . Slashing Weapon . | . . . . . . . . . . . . . . . . . . . . Piercing Weapon 4 | . . . . . . . . . . 1 . 1 . 2 . . . . . Special Melee Weapon 3 | . . . . . . . . . 1 1 . . . . . . 1 . . Unidentified Prototypes 18 | . . . . 3 1 2 . . 2 . . 1 . 9 . . . . . Corrupted Parts 2 | . . . . . . . . . . . 1 . 1 . . . . . . System Corruption 8 | . . . . . . . . . . . 5 . 3 . . . . . . Parts Lost 33 | . . 7 . 4 . . 1 . . . . 1 2 . . 6 10 2 . Power 3 | . . 2 . . . . . . . . . . . . . . 1 . . Propulsion 11 | . . 1 . 1 . . . . . . . . . . . 4 4 1 . Utility 10 | . . 1 . 1 . . 1 . . . . 1 . . . 2 4 . . Weapon 9 | . . 3 . 2 . . . . . . . . 2 . . . 1 1 . Highest Loss Streak 7 | . . 2 . 2 . . 1 . . . . 1 1 . . 3 7 1 . To Critical Strikes . | . . . . . . . . . . . . . . . . . . . . Average Backups 9 | 4 9 12 14 14 15 5 5 5 5 5 5 4 4 4 5 4 4 4 3 Power . | 1 1 1 2 2 2 . . . . . . . . . . . . . . Propulsion 1 | 1 2 2 3 3 4 . . . . . . . . . . . . . . Utility 3 | . 2 3 5 4 5 2 2 2 2 1 1 1 2 3 3 2 2 1 1 Weapon 2 | . 2 3 3 3 2 1 2 2 2 2 2 2 1 1 1 1 1 1 1 Tool/Special . | . . . . . . . . . . . . . . . . . . . . Unused Backups 19 | . 2 . 1 7 1 2 . . . . 1 . 1 1 . 1 1 . 1 Power 1 | . 1 . . . . . . . . . . . . . . . . . . Propulsion 2 | . . . . 2 . . . . . . . . . . . . . . . Utility 7 | . . . . 1 . 1 . . . . 1 . . 1 . 1 1 . 1 Weapon 8 | . 1 . 1 3 1 1 . . . . . . 1 . . . . . . Tool/Special 1 | . . . . 1 . . . . . . . . . . . . . . . Average Slot Usage (%) 89 | . 100 97 91 99 95 85 86 86 86 89 81 82 76 86 94 86 77 7 8 Engine 4 | . 14 13 1 . . 5 6 6 6 6 5 5 5 5 5 2 . . . Core 4 | . . . 7 9 9 . . . . . 2 5 5 5 5 4 3 . . Treads 12 | . 5 26 1 31 36 . . . . . . . . . . . . . . Leg 3 | . 22 . 25 2 . . . . . . . . . . . . . . . Flight 13 | . . . . . . 26 33 33 33 33 26 26 27 30 33 25 19 . . Device 17 | . 14 13 17 17 14 23 20 20 20 22 23 26 22 18 16 18 18 . . Storage 5 | . 14 14 9 9 9 . . . . . . . . . . . . . . Processor 4 | . . . . . . 1 6 6 6 6 5 5 6 13 16 15 14 1 5 Protection 3 | . . . 2 9 9 5 6 6 6 6 5 . . . . . . . . Energy Gun 4 | . 28 4 9 3 . . . . . . . . . . . . . . . Energy Cannon 1 | . . 6 9 2 . . . . . . . . . . . . . . . Ballistic Gun 5 | . . 16 . 10 14 . . . . . . . . . . . . . . Impact Weapon 2 | . . . . . 3 8 13 13 7 7 . . . . . . . . . Piercing Weapon 3 | . . . . . . . . . . 2 5 10 7 10 16 14 13 1 3 Peak Build Rating 141 | 7 8 12 25 35 42 69 68 64 74 73 88 98 97 121 121 141 138 75 12 Average Rating 54 | 5 7 8 20 28 33 58 64 64 64 67 78 95 89 106 121 126 122 11 11 On Entrance 59 | . 7 8 12 23 29 42 68 64 64 64 72 82 91 90 121 121 132 89 7 Avg Prop Armor Cover (%) 6 | . . 15 2 6 . 3 . . . . 1 . . . . 8 . . . Naked Turns . | . . . . . . . . . . . . . . . . . . . . Heaviest Build 45 | 15 30 33 42 44 45 30 25 25 25 26 33 42 34 32 32 34 35 10 3 Greatest Support 86 | 20 40 40 40 86 84 32 29 25 25 25 33 36 36 38 35 39 39 13 3 Greatest Overweight (x) 8 | . . 1 1 1 . . . . . 1 1 1 . 1 . 8 2 3 . Average Overweight (x) . | . . . . . . . . . . . . . . . . . . . . Largest Inventory Capacity 15 | 8 15 15 15 15 15 15 5 5 5 5 5 5 5 5 5 5 5 5 5 Average Capacity 9 | 7 10 15 15 15 15 5 5 5 5 5 5 5 5 5 5 5 5 5 5 Most Carried 15 | 7 10 15 15 15 15 15 5 5 5 5 5 5 5 5 5 5 5 5 4 Average Carried 9 | 5 9 12 14 14 14 5 5 5 4 4 4 4 4 4 5 4 4 4 3 Final Capacity 15 | 8 15 15 15 15 15 5 5 5 5 5 5 5 5 5 5 5 5 5 5 Final Carried 15 | 7 10 15 15 15 15 5 5 5 5 5 5 5 5 5 5 4 5 4 3 Scrap Engine Consumption 87 | . . . . . 1 21 . . 1 4 12 4 4 12 . 14 14 . . Constructs Created 11 | . . . . . . 2 . . . . 3 . . 1 . 3 2 . . Constructs Modified 13 | . . . . . . 1 1 . . . 3 . . . . 3 5 . . Class Distribution -------------------- 39% | Mutant 15% | Scavenger-Mutant 14% | Sprinter 13% | Infiltrator-Sprinter 12% | Ninja Dominant Class ---------------- Mutant | -10/Materials Mutant | -10/Subcaves Scavenger-Mutant | -8/Materials Mutant | -8/Storage Scavenger-Mutant | -8/Recycling Sprinter | -6/Factory Sprinter | -6/Lower Caves Sprinter | -6/Lower Caves Sprinter | -6/Zion Infiltrator-Sprinter | -5/Proximity Caves Infiltrator-Sprinter | -5/Factory Infiltrator-Sprinter | -5/Upper Caves Infiltrator-Sprinter | -5/Upper Caves Ninja | -5/Warlord Ninja | -4/Proximity Caves Ninja | -4/Factory Commander-Ninja | -4/Extension Mutant | -4/Cetus Mutant | -4/Archives Resources | -11 -10 -10 -8 -8 -8 -6 -6 -6 -6 -5 -5 -5 -5 -5 -4 -4 -4 -4 -4 ----------- Run | Yrd Mat Sub Mat Sto Rec Fac Low Low Zio Pro Fac Upp Upp War Pro Fac Ext Cet Arc Matter Collected 2796 | 270 50 264 80 560 189 263 44 . 75 60 70 103 217 170 . 220 161 . . Remotely . | . . . . . . . . . . . . . . . . . . . . Salvage Created 4435 | 225 326 290 97 1143 145 263 . . . . 345 192 . . 136 814 459 . . Parts 250 | 20 27 27 12 67 9 4 . . . . 6 8 . . 5 39 26 . . Haulers Intercepted 9 | . 1 . . 5 . 1 . . . . . . . . . 2 . . . Recyclers Shooed 3 | 1 . . . 1 . . . . . . 1 . . . . . . . . Parts Field Recycled . | . . . . . . . . . . . . . . . . . . . . Retrieved Matter . | . . . . . . . . . . . . . . . . . . . . Parts Self-Destructed 34 | . . 15 . . . . . 3 . 4 . 7 . . 5 . . . . Prevented 2 | . . . . . . . . . . . . . 2 . . . . . . Parts Restored . | . . . . . . . . . . . . . . . . . . . . Kills | -11 -10 -10 -8 -8 -8 -6 -6 -6 -6 -5 -5 -5 -5 -5 -4 -4 -4 -4 -4 ------- Run | Yrd Mat Sub Mat Sto Rec Fac Low Low Zio Pro Fac Upp Upp War Pro Fac Ext Cet Arc Combat Hostiles Destroyed 63 | . 7 11 4 19 3 . . . . . . 6 . . 2 8 3 . . Melee 15 | . . . . . . . . . . . . 2 . . 2 8 3 . . Guns 22 | . 5 6 2 6 3 . . . . . . . . . . . . . . Cannons 11 | . . 5 2 4 . . . . . . . . . . . . . . . AOE 15 | . 2 . . 9 . . . . . . . 4 . . . . . . . Classes Destroyed 13 | 3 4 1 1 1 . 1 . . . . . . . . . 2 . . . Worker 5 | 2 1 . . 2 . . . . . . . . . . . . . . . Builder 6 | . . . . 1 . . . . . . . . . . . 2 3 . . Tunneler 4 | 4 . . . . . . . . . . . . . . . . . . . Hauler 9 | . 1 . . 5 . 1 . . . . . . . . . 2 . . . Recycler 5 | 1 . . . . . 1 . . . . 2 . . . . . 1 . . Operator 2 | . . . . . . 1 . . . . . . . . . . 1 . . Watcher 10 | . 3 . . 1 . 1 . . . . 1 . . . . 2 2 . . Swarmer 22 | . 5 6 3 4 . . . . . . . 4 . . . . . . . Grunt 18 | . 2 1 . 9 . . . . . . . 1 . . 2 2 1 . . Sentry 11 | . . . 1 6 1 . . . . . . 1 . . . . 2 . . Hunter 4 | . . . . . . . . . . . . . . . . 4 . . . Programmer 2 | . . . . . . . . . . . . . . . . 2 . . . Subdweller 6 | . . 4 . . 2 . . . . . . . . . . . . . . Best Kill Streak 9 | 3 5 4 3 9 1 1 . . . . 2 4 . . 2 3 2 . . Combat Bots Only 7 | . 4 4 3 7 1 . . . . . . 4 . . 2 2 1 . . Max Kills in Single Turn 3 | 1 2 1 1 3 1 1 . . . . 1 3 . . 1 1 1 . . Gunslinging 1 | . 1 . . . . . . . . . . . . . . . . . . Exploded 3 | . 2 . . 3 . . . . . . . 3 . . . . . . . Melee 1 | . . . . . . . . . . . . 1 . . 1 1 1 . . Uniques/NPCs Destroyed . | . . . . . . . . . . . . . . . . . . . . Combat | -11 -10 -10 -8 -8 -8 -6 -6 -6 -6 -5 -5 -5 -5 -5 -4 -4 -4 -4 -4 -------- Run | Yrd Mat Sub Mat Sto Rec Fac Low Low Zio Pro Fac Upp Upp War Pro Fac Ext Cet Arc Hostile Shots Fired 601 | . 29 80 10 118 7 6 30 . . 4 . 36 24 5 5 95 99 52 1 Missed 229 | . 8 22 4 32 . 4 24 . . 2 . 17 17 3 1 46 33 16 . Hits 372 | . 21 58 6 86 7 2 6 . . 2 . 19 7 2 4 49 66 36 1 Melee 1 | . . . . 1 . . . . . . . . . . . . . . . Projectile 371 | . 21 58 6 85 7 2 6 . . 2 . 19 7 2 4 49 66 36 1 Critical Strikes 12 | . . 1 . 3 . . . . . . . . . . . 2 4 2 . Damage Taken 6523 | 30 259 851 51 1275 172 59 46 . . 44 29 278 149 120 79 858 1319 876 28 Core 1578 | 15 61 144 . 145 . . 5 . . 23 . 19 . . . 211 200 727 28 Absorbed by Shields 190 | . . . . . . . . . . . . 86 . . . . 104 . . Regen/Repaired (Parts) 1020 | . 5 . . . . 124 5 . 22 . 19 20 . 169 . 356 300 . . Core Remaining (%) 74 | 94 . 12 . . 73 . . . . 96 . . . . 98 . . . . Volleys Fired 161 | 11 17 41 5 57 11 . . . . . . 7 7 4 . . 1 . . Largest 2 | 2 2 2 2 2 2 . . . . . . 1 1 1 . . 1 . . Hottest 120 | 80 80 80 120 120 50 . . . . . . 36 43 20 . . 43 . . Shots Fired 275 | 20 34 72 10 96 23 . . . . . . 7 8 4 . . 1 . . Gun 211 | 20 34 54 5 75 23 . . . . . . . . . . . . . . Cannon 30 | . . 18 5 7 . . . . . . . . . . . . . . . Launcher 30 | . . . . 14 . . . . . . . 7 8 . . . 1 . . Special 4 | . . . . . . . . . . . . . . 4 . . . . . Kinetic 131 | . . 54 . 54 23 . . . . . . . . . . . . . . Thermal 60 | . . 18 10 28 . . . . . . . . . 4 . . . . . Explosive 12 | . . . . 5 . . . . . . . 7 . . . . . . . Electromagnetic 72 | 20 34 . . 9 . . . . . . . . 8 . . . 1 . . Robot Hit Streak 22 | 4 7 10 2 10 17 . . . . . . 19 22 . . . . . . Robot Miss Streak 5 | 2 5 3 2 4 . . . . . . . . 1 . . . . . . Penetration Max . | . . . . . . . . . . . . . . . . . . . . Secondary Targets 5 | . 2 3 . . . . . . . . . . . . . . . . . Max Gunslinging Chain 1 | . 1 1 . . . . . . . . . . . . . . . . . Shots Hit Robots 282 | 10 20 49 4 65 12 7 . . 9 . 5 6 5 . 7 35 47 . 1 Core Hits 143 | 8 15 17 4 43 5 1 . . . . 3 10 2 . 2 17 16 . . Critical Kills 1 | . . . . . . 1 . . . . . . . . . . . . . Critical Parts Destroyed 1 | . . . . . . 1 . . . . . . . . . . . . . Critical Strikes 10 | . 2 . . . 1 2 . . . . . . . . 1 4 . . . Destroy 1 | . . . . . 1 . . . . . . . . . . . . . . Corrupt 2 | . 2 . . . . . . . . . . . . . . . . . . Smash 2 | . . . . . . 2 . . . . . . . . . . . . . Impale 3 | . . . . . . . . . . . . . . . . 3 . . . Sunder 2 | . . . . . . . . . . . . . . . 1 1 . . . Melee Attacks 268 | . . . . . 4 10 . 3 51 . 8 5 . . 8 105 67 . 7 Impact 58 | . . . . . 4 10 . 3 41 . . . . . . . . . . Slashing . | . . . . . . . . . . . . . . . . . . . . Piercing 125 | . . . . . . . . . . . 7 5 . . 4 71 31 . 7 Entropic 55 | . . . . . . . . . . . . . . . 4 34 17 . . Sneak Attacks 45 | . . . . . . 2 . . 8 . 3 . . . 3 8 21 . . Combat Hostiles 4 | . . . . . . . . . . . . . . . 3 1 . . . Follow-up Attacks 27 | . . . . . . . . . . . . 1 . . 3 10 13 . . Damage Inflicted 10358 | 169 434 703 127 2165 220 414 . . . . 348 726 231 . 613 2200 1969 . 39 Guns 2094 | 137 293 440 90 966 168 . . . . . . . . . . . . . . Cannons 410 | . . 263 37 110 . . . . . . . . . . . . . . . Explosions 2278 | 32 141 . . 1089 . . . . . . . 515 231 . . . 270 . . Melee 5576 | . . . . . 52 414 . . . . 348 211 . . 613 2200 1699 . 39 Ramming . | . . . . . . . . . . . . . . . . . . . . Kinetic 1300 | . . 440 . 692 168 . . . . . . . . . . . . . . Thermal 1183 | 32 141 263 127 512 . . . . . . . . . . . . 108 . . Explosive 792 | . . . . 277 . . . . . . . 515 . . . . . . . Electromagnetic 1507 | 137 293 . . 684 . . . . . . . . 231 . . . 162 . . Impact 466 | . . . . . 52 414 . . . . . . . . . . . . . Slashing . | . . . . . . . . . . . . . . . . . . . . Piercing 3286 | . . . . . . . . . . . 348 211 . . 240 1503 945 . 39 Entropic 1824 | . . . . . . . . . . . . . . . 373 697 754 . . Highest Corruption 9 | . . . . 1 1 5 5 5 5 . 5 5 9 9 . . . . . Average Corruption 2 | . . . . 1 1 5 5 5 5 . 5 5 6 9 . . . . . Corruption Purged . | . . . . . . . . . . . . . . . . . . . . Corruption Blocked . | . . . . . . . . . . . . . . . . . . . . Effects 67 | . . . . 9 10 9 6 3 . . 4 16 9 1 . . . . . Message Errors 20 | . . . . 3 4 2 2 . . . 1 5 3 . . . . . . Matter Fused 19 | . . . . 1 1 2 1 2 . . 1 8 3 . . . . . . Heat Flow Errors 10 | . . . . 1 4 . 1 1 . . 1 1 1 . . . . . . Energy Discharges 5 | . . . . 2 . 3 . . . . . . . . . . . . . Parts Fused 1 | . . . . 1 . . . . . . . . . . . . . . . Data Loss (minor) 9 | . . . . 1 . 1 2 . . . 1 2 1 1 . . . . . Misfires 2 | . . . . . 1 . . . . . . . 1 . . . . . . Alerts 1 | . . . . . . 1 . . . . . . . . . . . . . Overload Shots . | . . . . . . . . . . . . . . . . . . . . Overflow Damage 754 | . . . . 20 2 171 . . . . 123 39 . . 112 187 100 . . Projectiles . | . . . . . . . . . . . . . . . . . . . . Explosions 33 | . . . . 20 . . . . . . . 13 . . . . . . . Melee 721 | . . . . . 2 171 . . . . 123 26 . . 112 187 100 . . Knockbacks 2 | . . . . . 1 1 . . . . . . . . . . . . . Impact 2 | . . . . . 1 1 . . . . . . . . . . . . . Kinetic . | . . . . . . . . . . . . . . . . . . . . Secondary . | . . . . . . . . . . . . . . . . . . . . Self-Inflicted Damage 220 | 30 31 . . 86 . . . . . . . 21 52 . . . . . . Shots 11 | 1 1 . . 5 . . . . . . . 1 3 . . . . . . Rammed . | . . . . . . . . . . . . . . . . . . . . Targets Rammed . | . . . . . . . . . . . . . . . . . . . . Kicked . | . . . . . . . . . . . . . . . . . . . . Crushed . | . . . . . . . . . . . . . . . . . . . . Highest Temperature 324 | 54 183 . 144 324 267 . 239 106 244 60 138 219 120 82 214 45 10 12 . Average Temperature 51 | 22 66 . 57 74 89 . 45 40 66 22 35 96 68 23 75 9 6 12 . Received Heat Transfer 1157 | . 33 102 . 432 18 . 18 . . . . 12 24 9 9 81 223 187 9 Effects 4 | . . . . 1 . . . . 1 . . . . . 2 . . . . Energy Bleed 1 | . . . . . . . . . 1 . . . . . . . . . . Interference 2 | . . . . . . . . . . . . . . . 2 . . . . Matter Decay 1 | . . . . 1 . . . . . . . . . . . . . . . Siege Activations . | . . . . . . . . . . . . . . . . . . . . Martial Activations . | . . . . . . . . . . . . . . . . . . . . Shielding Activations . | . . . . . . . . . . . . . . . . . . . . Robots Disrupted . | . . . . . . . . . . . . . . . . . . . . Combat Hostiles . | . . . . . . . . . . . . . . . . . . . . Robots Corrupted 3 | . . . . . . 3 . . . . . . . . . . . . . Combat Hostiles . | . . . . . . . . . . . . . . . . . . . . Parts Fried 5 | . 1 . . 1 . 3 . . . . . . . . . . . . . Impact Corruptions 8 | . . . . . 1 7 . . . . . . . . . . . . . Robots Melted . | . . . . . . . . . . . . . . . . . . . . Combat Hostiles . | . . . . . . . . . . . . . . . . . . . . Parts Melted 3 | . . 1 . 1 1 . . . . . . . . . . . . . . Heat Transferred 2111 | 50 250 555 174 882 . . . . . . . . . . . . 200 . . Parts Sabotaged . | . . . . . . . . . . . . . . . . . . . . Parts Stolen . | . . . . . . . . . . . . . . . . . . . . Parts Stripped . | . . . . . . . . . . . . . . . . . . . . Power Chain Reactions 6 | 1 2 . . 2 . . . . . . . . . . . . 1 . . Alert | -11 -10 -10 -8 -8 -8 -6 -6 -6 -6 -5 -5 -5 -5 -5 -4 -4 -4 -4 -4 ------- Run | Yrd Mat Sub Mat Sto Rec Fac Low Low Zio Pro Fac Upp Upp War Pro Fac Ext Cet Arc Maximum Alert Level 2 | . . . . 1 . 1 . . . . 1 . . . . . 2 1 . Low Security (%) 89 | 100 100 . 100 84 100 96 . . . . 24 . . . . 100 69 41 100 Level 1 9 | . . . . 15 . 3 . . . . 75 . . . . . 20 58 . Level 2 . | . . . . . . . . . . . . . . . . . 10 . . Level 3 . | . . . . . . . . . . . . . . . . . . . . Level 4 . | . . . . . . . . . . . . . . . . . . . . Level 5 . | . . . . . . . . . . . . . . . . . . . . High Security . | . . . . . . . . . . . . . . . . . . . . Max Security . | . . . . . . . . . . . . . . . . . . . . Peak Influence 431 | 10 112 . 70 281 88 206 . . . . 315 . . . . 154 431 259 94 Initial 300 | . . . . 9 . 206 . . . . 300 . . . . 15 22 229 64 Average 60 | 2 16 . 12 58 15 115 . . . . 248 . . . . 58 136 208 82 Influence Increases 4366 | 35 296 195 109 674 154 370 . . . 93 422 120 60 15 65 644 982 102 30 Destroy 0b10 Robot/C 1540 | . 140 140 80 380 20 . . . . 60 . 120 . . 40 160 400 . . Destroy 0b10 Robot/NC 215 | 35 25 . . 45 . 20 . . . 5 15 . . . . 30 40 . . Destroy Leader 266 | . 28 10 20 102 . 4 . . . 10 2 . . . 10 36 44 . . Allied During Kill 301 | . . . . . . . . . . 18 . . . . . . 283 . . Successful Hack 262 | . 41 . 8 11 12 84 . . . . 30 . . . . 54 10 12 . Select Force Hacks 120 | . . . . . 120 . . . . . . . . . . . . . . Disable Machine 180 | . 15 . . 30 . 15 . . . . 15 . . . . 30 15 30 30 Destroy Structure 157 | . 2 . 1 46 2 2 . . . . . . . . . 64 40 . . Advance Influence 500 | . . . . . . 200 . . . . 300 . . . . . . . . Partial Spotted 270 | . . . . . . 45 . . . . 60 . . . . 120 45 . . Lose Combat Pursuer 555 | . 45 45 . 60 . . . . . . . . 60 15 15 150 105 60 . Influence Decreases 4282 | 35 296 195 86 697 138 385 1 . . 93 290 206 106 15 40 622 619 351 107 Entered New Map 398 | . . . . 14 . 10 1 . . . . 50 10 . . 10 25 181 97 Time Decay 2723 | 35 216 185 86 420 138 237 . . . 53 190 146 96 15 40 447 259 150 10 Search Patrol Dispatched 100 | . . . . . . . . . . . 100 . . . . . . . . Lost Part 220 | . . 10 . 40 . . . . . . . 10 . . . 60 80 20 . Lost Ally 305 | . . . . . . . . . . 40 . . . . . 10 255 . . Purge Threat 536 | . 80 . . 223 . 138 . . . . . . . . . 95 . . . Squads Dispatched 21 | . 1 . 1 2 . 4 . . . . 1 . . . . 8 3 1 . Investigation 7 | . 1 . . 1 . . . . . . 1 . . . . 2 1 1 . Extermination 5 | . . . . . . 1 . . . . . . . . . 4 . . . Reinforcement 9 | . . . 1 1 . 3 . . . . . . . . . 2 2 . . Assault . | . . . . . . . . . . . . . . . . . . . . Garrison . | . . . . . . . . . . . . . . . . . . . . Intercept . | . . . . . . . . . . . . . . . . . . . . Searches Triggered 1 | . . . . . . . . . . . 1 . . . . . . . . Construction Impeded 2 | . . . . 1 . . . . . . . . . . . . 1 . . Haulers Reinforced 1 | . . . . . . 1 . . . . . . . . . . . . . Active Scanning Responses . | . . . . . . . . . . . . . . . . . . . . Cargo Convoy Interrupts 1 | . . . . . . . . . . . . . . . . 1 . . . Stealth | -11 -10 -10 -8 -8 -8 -6 -6 -6 -6 -5 -5 -5 -5 -5 -4 -4 -4 -4 -4 --------- Run | Yrd Mat Sub Mat Sto Rec Fac Low Low Zio Pro Fac Upp Upp War Pro Fac Ext Cet Arc Distress Signals 8 | . 1 . . 2 2 1 . . . 1 . . . . . . . 1 . Communications Jammed 34 | . . . . . . . . . . . 2 . . 28 . 2 2 . . Distress Signals 33 | . . . . . . . . . . . 1 . . 28 . 2 2 . . Times Spotted 207 | . 13 13 13 32 6 10 2 . . 6 4 12 5 20 2 26 33 8 2 Peak Tracking Total 9 | . 4 3 3 5 2 4 1 . . 3 1 7 6 9 2 5 8 5 2 Tactical Retreats 40 | . 2 2 1 6 5 3 2 . . 1 2 4 1 1 1 5 3 1 . ECM-based Alert Blocks 27 | . . . 3 5 . 5 2 . . 2 2 6 2 . . . . . . Traps | -11 -10 -10 -8 -8 -8 -6 -6 -6 -6 -5 -5 -5 -5 -5 -4 -4 -4 -4 -4 ------- Run | Yrd Mat Sub Mat Sto Rec Fac Low Low Zio Pro Fac Upp Upp War Pro Fac Ext Cet Arc Traps Triggered 11 | . 2 . . 4 . 1 . . . . 1 . . 1 . . 2 . . Indirectly 3 | . . . . 3 . . . . . . . . . . . . . . . Trap Hack Attempts . | . . . . . . . . . . . . . . . . . . . . Triggered . | . . . . . . . . . . . . . . . . . . . . Disarmed . | . . . . . . . . . . . . . . . . . . . . Reprogrammed . | . . . . . . . . . . . . . . . . . . . . Reused . | . . . . . . . . . . . . . . . . . . . . Traps Extracted . | . . . . . . . . . . . . . . . . . . . . Installed . | . . . . . . . . . . . . . . . . . . . . Triggered . | . . . . . . . . . . . . . . . . . . . . Machines | -11 -10 -10 -8 -8 -8 -6 -6 -6 -6 -5 -5 -5 -5 -5 -4 -4 -4 -4 -4 ---------- Run | Yrd Mat Sub Mat Sto Rec Fac Low Low Zio Pro Fac Upp Upp War Pro Fac Ext Cet Arc Machines Disabled 16 | . 1 . . 2 . 1 . . . . 1 2 . 1 . 2 2 2 2 Max in Single Turn 1 | . 1 . . 1 . 1 . . . . 1 1 . 1 . 1 1 1 1 Garrison Access 1 | . . . . 1 . . . . . . . . . . . . . . . Machines Repaired . | . . . . . . . . . . . . . . . . . . . . Machines Dismantled 4 | . . . . . . . . . . . . . . 1 . . 1 2 . Machines Sabotaged . | . . . . . . . . . . . . . . . . . . . . Overloaded Fab Kills . | . . . . . . . . . . . . . . . . . . . . Hacking | -11 -10 -10 -8 -8 -8 -6 -6 -6 -6 -5 -5 -5 -5 -5 -4 -4 -4 -4 -4 --------- Run | Yrd Mat Sub Mat Sto Rec Fac Low Low Zio Pro Fac Upp Upp War Pro Fac Ext Cet Arc Machines Accessed 90 | . 11 1 2 10 12 11 . . . . 5 1 1 11 . 13 9 3 . Terminals 56 | . 8 . 2 8 6 6 . . . . 3 1 . . . 10 9 3 . Fabricators 2 | . . . . . . . . . . . 1 . . . . 1 . . . Repair Stations 4 | . 1 . . . . 1 . . . . . . . . . 2 . . . Recycling Units 9 | . 2 . . 1 4 2 . . . . . . . . . . . . . Scanalyzers 1 | . . . . . . . . . . . 1 . . . . . . . . Garrison Access 3 | . . . . 1 . 2 . . . . . . . . . . . . . Total Hacks 251 | . 33 5 4 21 45 29 . . . . 17 4 1 22 . 34 28 8 . Successful 136 | . 19 5 1 7 35 12 . . . . 4 4 1 22 . 15 8 3 . Failed 115 | . 14 . 3 14 10 17 . . . . 13 . . . . 19 20 5 . Catastrophic 31 | . 4 . 1 4 3 6 . . . . 4 . . . . 4 5 . . Database Lockouts . | . . . . . . . . . . . . . . . . . . . . Manual 73 | . 16 . 4 6 11 4 . . . . 9 . . . . 13 10 . . Terminals 151 | . 28 . 4 18 11 12 . . . . 12 4 . . . 26 28 8 . Fabricators 3 | . . . . . . . . . . . 1 . . . . 2 . . . Repair Stations 15 | . 2 . . . . 7 . . . . . . . . . 6 . . . Recycling Units 19 | . 3 . . 2 7 7 . . . . . . . . . . . . . Scanalyzers 4 | . . . . . . . . . . . 4 . . . . . . . . Garrison Access 4 | . . . . 1 . 3 . . . . . . . . . . . . . Terminal Hacks 112 | . 11 5 1 6 31 6 . . . . 3 4 1 22 . 11 8 3 . Record 61 | . . 5 . . 25 1 . . . . 3 4 . 11 . 5 4 3 . Part Schematic 1 | . . . . . 1 . . . . . . . . . . . . . . Robot Analysis 5 | . 3 . . . 2 . . . . . . . . . . . . . . Prototype ID Bank 15 | . 4 . . 1 1 . . . . . . . . 9 . . . . . Open Door 8 | . . . . 1 . . . . . . . . 1 2 . 1 3 . . Open DSF 2 | . . . . . . 2 . . . . . . . . . . . . . Branch Access Points 5 | . . . 1 . . 1 . . . . . . . . . 2 1 . . Emergency Access Points 1 | . 1 . . . . . . . . . . . . . . . . . . Terminal Index 1 | . . . . . . . . . . . . . . . . 1 . . . Unreport Threat 7 | . 2 . . 2 . 1 . . . . . . . . . 2 . . . Locate Traps 1 | . . . . 1 . . . . . . . . . . . . . . . Recall Investigation 2 | . 1 . . 1 . . . . . . . . . . . . . . . Recall Extermination 1 | . . . . . . 1 . . . . . . . . . . . . . Release Object 2 | . . . . . 2 . . . . . . . . . . . . . . Fabricator Hacks 1 | . . . . . . . . . . . . . . . . 1 . . . Network Status 1 | . . . . . . . . . . . . . . . . 1 . . . Repair Station Hacks 8 | . 2 . . . . 4 . . . . . . . . . 2 . . . Scan Component 5 | . 1 . . . . 2 . . . . . . . . . 2 . . . Repair 3 | . 1 . . . . 2 . . . . . . . . . . . . . Recycling Unit Hacks 3 | . 1 . . . . 2 . . . . . . . . . . . . . Report Inventory 1 | . 1 . . . . . . . . . . . . . . . . . . Retrieve Components 2 | . . . . . . 2 . . . . . . . . . . . . . Scanalyzer 1 | . . . . . . . . . . . 1 . . . . . . . . Retrieve Study 1 | . . . . . . . . . . . 1 . . . . . . . . Garrison Access Hacks 1 | . . . . 1 . . . . . . . . . . . . . . . Seal Access 1 | . . . . 1 . . . . . . . . . . . . . . . Unauthorized Hacks 8 | . 3 . . . 4 . . . . . . . . . . 1 . . . Terminals 4 | . 3 . . . . . . . . . . . . . . 1 . . . Track 1 | . 1 . . . . . . . . . . . . . . . . . . Assimilate 2 | . 1 . . . . . . . . . . . . . . 1 . . . Operators 1 | . 1 . . . . . . . . . . . . . . . . . . Fabricators . | . . . . . . . . . . . . . . . . . . . . Repair Stations . | . . . . . . . . . . . . . . . . . . . . Recycling Units 4 | . . . . . 4 . . . . . . . . . . . . . . Tunnel 4 | . . . . . 4 . . . . . . . . . . . . . . Scanalyzers . | . . . . . . . . . . . . . . . . . . . . Garrison Access . | . . . . . . . . . . . . . . . . . . . . Data Cores Recovered 1 | . . . . . . . . . . . . . . . . . 1 . . Used . | . . . . . . . . . . . . . . . . . . . . Hacking Detections 63 | . 8 . 1 9 7 9 . . . . 5 1 . . . 13 7 3 . Full Trace Events 6 | . . . . 1 . . . . . . 1 . . . . 2 1 1 . Feedback Events . | . . . . . . . . . . . . . . . . . . . . Feedback Blocked . | . . . . . . . . . . . . . . . . . . . . Robot Schematics Acquired 3 | . . . . . . . . . 3 . . . . . . . . . . Robots Built . | . . . . . . . . . . . . . . . . . . . . Authchips . | . . . . . . . . . . . . . . . . . . . . Time . | . . . . . . . . . . . . . . . . . . . . Total Robot Build Rating . | . . . . . . . . . . . . . . . . . . . . Part Schematics Acquired 15 | . . . . . 1 . . . 14 . . . . . . . . . . Parts Built . | . . . . . . . . . . . . . . . . . . . . Authchips . | . . . . . . . . . . . . . . . . . . . . Time . | . . . . . . . . . . . . . . . . . . . . Total Part Build Rating . | . . . . . . . . . . . . . . . . . . . . Part Studies Acquired 1 | . . . . . . . . . . . 1 . . . . . . . . Parts Repaired 3 | . 1 . . . . 2 . . . . . . . . . . . . . Time 68 | . 36 . . . . 32 . . . . . . . . . . . . . Parts Recycled . | . . . . . . . . . . . . . . . . . . . . Recycled Matter . | . . . . . . . . . . . . . . . . . . . . Retrieved Matter . | . . . . . . . . . . . . . . . . . . . . Retrieved Components 6 | . . . . . . 6 . . . . . . . . . . . . . Parts Scanalyzed . | . . . . . . . . . . . . . . . . . . . . Part Schematics Acquired . | . . . . . . . . . . . . . . . . . . . . Parts Damaged . | . . . . . . . . . . . . . . . . . . . . Bothacking | -11 -10 -10 -8 -8 -8 -6 -6 -6 -6 -5 -5 -5 -5 -5 -4 -4 -4 -4 -4 ------------ Run | Yrd Mat Sub Mat Sto Rec Fac Low Low Zio Pro Fac Upp Upp War Pro Fac Ext Cet Arc Used RIF Installer . | . . . . . . . . . . . . . . . . . . . . Robots Hacked 11 | . . . . . . . . . 8 . . . . . . . 3 . . Non-combat 4 | . . . . . . . . . 3 . . . . . . . 1 . . Combat 7 | . . . . . . . . . 5 . . . . . . . 2 . . Robot Hacks Applied 12 | . . . . . . . . . 8 . . . . . . . 4 . . parse_system 11 | . . . . . . . . . 8 . . . . . . . 3 . . no_distress 1 | . . . . . . . . . . . . . . . . . 1 . . Relay Couplers Released . | . . . . . . . . . . . . . . . . . . . . Fabnet Peak Effective % . | . . . . . . . . . . . . . . . . . . . . Robots Rewired 10 | . . . . . . . . . . . . . . . . . 10 . . Allies Hacked 1 | . . . . . . . . . . 1 . . . . . . . . . Hacks Repelled . | . . . . . . . . . . . . . . . . . . . . Allies | -11 -10 -10 -8 -8 -8 -6 -6 -6 -6 -5 -5 -5 -5 -5 -4 -4 -4 -4 -4 -------- Run | Yrd Mat Sub Mat Sto Rec Fac Low Low Zio Pro Fac Upp Upp War Pro Fac Ext Cet Arc Total Allies 20 | . 1 . . . . . . . 4 . . . . . . 1 14 . . Largest Group 11 | . 1 . . . . . . . 4 4 . . . . . 1 11 . . Highest-Rated Group 534 | . 10 . . . . . . . 90 90 . . . . . 26 534 . . Highest-Rated Ally 159 | . 10 . . . . . . . 31 31 . . . . . 26 159 . . Total Orders 5 | . 2 . . . . . . . . . . . . . . . 3 . . STAY 1 | . 1 . . . . . . . . . . . . . . . . . . FOLLOW 1 | . 1 . . . . . . . . . . . . . . . . . . GUARD 1 | . . . . . . . . . . . . . . . . . 1 . . AID 2 | . . . . . . . . . . . . . . . . . 2 . . Ally Attacks 131 | . . . . . . . . . . 22 . . . . . . 109 . . Total Damage 3797 | . . . . . . . . . . 491 . . . . . . 3306 . . Kills 22 | . . . . . . . . . . 4 . . . . . . 18 . . Allies Corrupted 2 | . . . . . . . . . . . . . . . . . 2 . . Allies Melted 2 | . . . . . . . . . . . . . . 2 . . . . . Intel | -11 -10 -10 -8 -8 -8 -6 -6 -6 -6 -5 -5 -5 -5 -5 -4 -4 -4 -4 -4 ------- Run | Yrd Mat Sub Mat Sto Rec Fac Low Low Zio Pro Fac Upp Upp War Pro Fac Ext Cet Arc Active Infowar (turns) 12228 | 52 1447 1183 424 1597 1245 524 278 140 848 340 396 710 312 638 259 1241 581 13 . Optics 2964 | . . . . 516 . . . . . . . . . 354 259 1241 581 13 . Sensors 5753 | . . . . . . 169 278 140 848 340 396 710 312 636 259 1133 532 . . Terrain 389 | . . . . . . . . . . . . . . . . 298 91 . . Seismic 6270 | 52 1447 1183 414 1590 1245 339 . . . . . . . . . . . . . Jamming 3474 | . . . . . . . . . . 150 387 710 298 638 244 784 263 . . ECM 6474 | . . . 412 996 1245 524 278 140 848 338 387 709 298 282 . 17 . . . Robot Analysis Total 5 | . 3 . . . 2 . . . . . . . . . . . . . . Derelict Logs Recovered 11 | . . 1 . . . . 3 . . 1 . 1 3 . 2 . . . . Drone Launches . | . . . . . . . . . . . . . . . . . . . . Drone Recoveries . | . . . . . . . . . . . . . . . . . . . . Exploration | -11 -10 -10 -8 -8 -8 -6 -6 -6 -6 -5 -5 -5 -5 -5 -4 -4 -4 -4 -4 ------------- Run | Yrd Mat Sub Mat Sto Rec Fac Low Low Zio Pro Fac Upp Upp War Pro Fac Ext Cet Arc Turns Passed 13752 | 190 1447 1249 424 1696 2116 537 278 140 848 340 396 712 312 638 259 1241 581 317 31 Spaces Moved 18981 | 122 948 694 255 735 1300 1242 720 504 2006 838 1034 1660 978 1704 916 2202 845 254 24 Core 265 | 6 . . . . . . . . . . . . . . . 1 . 234 24 Treads 2842 | . 179 617 11 735 1300 . . . . . . . . . . . . . . Legs 1129 | 116 769 . 244 . . . . . . . . . . . . . . . . Wheels 77 | . . 77 . . . . . . . . . . . . . . . . . Hover . | . . . . . . . . . . . . . . . . . . . . Flight 14668 | . . . . . . 1242 720 504 2006 838 1034 1660 978 1704 916 2201 845 20 . Fastest Speed 20 | 50 120 120 126 145 152 25 23 23 23 23 23 26 26 20 20 20 26 40 50 Average Speed 51 | 116 127 156 128 153 155 26 23 23 23 23 29 26 26 23 20 23 32 50 50 Slowest Speed 450 | 120 160 240 200 240 156 31 25 23 23 97 99 102 26 98 20 450 200 200 50 Overloaded Moves 484 | . . . . . . . . . . . . . . . . 484 . . . Propulsion Burnouts 2 | . . . . . . . . . . . . . . . . 2 . . . Robots Hopped . | . . . . . . . . . . . . . . . . . . . . Potential Cave-ins 6 | . . . . . . . . . . . . . . . . 4 2 . . Cave-ins Triggered . | . . . . . . . . . . . . . . . . . . . . Exploration Rate (%) 61 | 7 93 35 20 69 99 24 62 54 90 76 15 99 83 98 89 29 62 88 34 Regions Visited 19 Branch Regions 14 Pre-discovered Areas 6 | . . . . . 4 . . . 1 . . . . . 1 . . . . Known Exits Taken 13 | . . . 1 . . 1 1 1 1 1 1 1 1 1 1 1 1 . . Unknown Exits Taken 6 | 1 1 1 . 1 1 . . . . . . . . . . . . 1 . Scrap Searched 19 | . . . . . . . 1 2 3 4 . 2 4 . 3 . . . . Spaces Dug 62 | . . . . 2 1 2 . 3 . . . 11 . . . 38 5 . . Terrain Destroyed 132 | 2 3 . . 45 1 2 . 3 . . . 32 . . . 38 6 . . Melee 50 | . . . . . 1 2 . 3 . . . 1 . . . 38 5 . . Projectile . | . . . . . . . . . . . . . . . . . . . . AOE 82 | 2 3 . . 45 . . . . . . . 31 . . . . 1 . . Terrain Rammed . | . . . . . . . . . . . . . . . . . . . . Walls Destroyed . | . . . . . . . . . . . . . . . . . . . . Machines Disabled . | . . . . . . . . . . . . . . . . . . . . Actions | -11 -10 -10 -8 -8 -8 -6 -6 -6 -6 -5 -5 -5 -5 -5 -4 -4 -4 -4 -4 --------- Run | Yrd Mat Sub Mat Sto Rec Fac Low Low Zio Pro Fac Upp Upp War Pro Fac Ext Cet Arc Total 22422 | 147 1153 785 341 1231 1368 1428 828 521 2308 982 1121 1915 1026 1930 984 2813 1095 412 34 Wait 2583 | . 173 27 60 375 38 101 109 15 238 134 56 235 32 178 65 493 129 123 2 Move 18962 | 121 947 693 254 734 1299 1241 719 503 2005 837 1033 1659 977 1703 915 2201 844 253 24 Hop . | . . . . . . . . . . . . . . . . . . . . Pick Up 85 | 8 6 11 6 19 2 8 . . 2 3 3 1 2 4 . 5 4 1 . Fast Attach 64 | 6 . 1 2 3 1 10 . . 5 1 4 4 2 9 . 11 4 1 . Attach 38 | 1 . 7 4 3 1 8 . . . 1 1 2 2 2 . 2 1 2 1 Detach 33 | . . 1 1 2 2 10 . . . . 5 1 1 4 . 3 2 1 . Swap 82 | . 5 4 4 17 5 11 . . 2 3 2 . 1 6 . 12 10 . . Drop 104 | . 5 . 5 21 5 14 . . 5 3 9 2 2 11 . 15 6 1 . Fire 161 | 11 17 41 5 57 11 . . . . . . 7 7 4 . . 1 . . Melee 212 | . . . . . 4 10 . 3 51 . 8 4 . . 4 71 50 . 7 Ram . | . . . . . . . . . . . . . . . . . . . . Kick . | . . . . . . . . . . . . . . . . . . . . Crush . | . . . . . . . . . . . . . . . . . . . . Escape Stasis 51 | . . . . . . 15 . . . . . . . . . . 36 . . Rewire . | . . . . . . . . . . . . . . . . . . . . Trap . | . . . . . . . . . . . . . . . . . . . . Miscellaneous 47 | . . . . . . . . . . . . . . 9 . . 8 30 . Route ------- -11/Scrapyard -10/Materials (discovered 6 exits: [*Mat x3] / [*Min x2] / *Sub) -10/Subcaves -8/Materials -8/Storage -8/Recycling -6/Factory (discovered 3 exits: *Fac / *Low x2) -6/Lower Caves -6/Lower Caves -6/Zion -5/Proximity Caves -5/Factory (discovered 2 exits: *Upp x2) -5/Upper Caves -5/Upper Caves (discovered 2 exits: *Fac / *War) -5/Warlord -4/Proximity Caves -4/Factory (discovered 6 exits: Res / *Upp x2 / *Ext x2 / *Arm) -4/Extension (discovered 3 exits: *Res x2 / *Cet) -4/Cetus (discovered 2 exits: *Res / *Arc) -4/Archives History --------- Turn | Location | Event 14 | -11/Scrapyard | Discovered new exit (range 16) 191 | -11/Scrapyard | Entered Materials 217 | -10/Materials | Discovered new exit (range 8) 286 | -10/Materials | Discovered new exit (range 3) 312 | -10/Materials | Build established: Mutant 531 | -10/Materials | Discovered new exit (range 12) 730 | -10/Materials | Repaired Corrupted Seismic Detector 934 | -10/Materials | Discovered new exit (range 8) 950 | -10/Materials | Discovered new exit (range 16) 1310 | -10/Materials | Discovered new exit (range 3) 1638 | -10/Materials | Entered Subcaves 1956 | -10/Subcaves | Core integrity fell below 50% 2493 | -10/Subcaves | Learned 2 Materials zone layouts 2581 | -10/Subcaves | Shifting Twisted Machinery released Sub. Power Source 2703 | -10/Subcaves | Discovered new exit (range 5) 2761 | -10/Subcaves | Core integrity fell below 20% 2803 | -10/Subcaves | Visited Clippyterm 2807 | -10/Subcaves | Learned Research security intel 2807 | -10/Subcaves | Learned Research machine intel 2887 | -10/Subcaves | Entered Materials 2887 | -8/Materials | Evolved 4 slots: Propulsion x2, Utility x2 3099 | -8/Materials | Build established: Scavenger-Mutant 3260 | -8/Materials | Discovered new exit (range 10) 3300 | -8/Materials | Identified exit to Storage 3311 | -8/Materials | Entered Storage 3853 | -8/Storage | Destroyed 7 combat bots 3986 | -8/Storage | Build established: Mutant 4940 | -8/Storage | Used back door to open Recycling access 4940 | -8/Storage | Discovered new exit (range 5) 5007 | -8/Storage | Entered Recycling 5314 | -8/Recycling | Build established: Scavenger-Mutant 5786 | -8/Recycling | Discovered new exit (range 5) 6229 | -8/Recycling | Entered Scraplab 6254 | -8/Recycling | Found Prototype Device 6254 | -8/Recycling | Identified Scrap Engine 6560 | -8/Recycling | Build established: Mutant 7123 | -8/Recycling | Entered Factory 7123 | -6/Factory | Evolved 4 slots: Propulsion x1, Utility x3 7404 | -6/Factory | Discovered new exit (range 6) 7405 | -6/Factory | Discovered new exit (range 15) 7444 | -6/Factory | Build established: Sprinter 7445 | -6/Factory | Repaired Seismic Detector 7466 | -6/Factory | Repaired Imp. Light Armor Plating 7501 | -6/Factory | Spotted B-75 Beast 7537 | -6/Factory | Identified exit to Lower Caves 7660 | -6/Factory | Entered Lower Caves 7664 | -6/Lower Caves | Attracted the attention of an 0b10 checkpoint 7734 | -6/Lower Caves | Learned Factory terminal intel 7801 | -6/Lower Caves | Encountered a Warlord checkpoint 7832 | -6/Lower Caves | Discovered new exit (range 14) 7834 | -6/Lower Caves | Identified exit to Lower Caves 7938 | -6/Lower Caves | Entered another Lower Caves area 7941 | -6/Lower Caves | Encountered a Warlord checkpoint 8019 | -6/Lower Caves | Discovered new exit (range 8) 8021 | -6/Lower Caves | Identified exit to Zion 8078 | -6/Lower Caves | Entered Zion 8099 | -6/Zion | Discovered new exit (range 16) 8114 | -6/Zion | System corruption cleaned by Quarantine Array 8238 | -6/Zion | Gained Derelict followers 8252 | -6/Zion | Found Prototype Device 8252 | -6/Zion | Identified Mobile Refinery Mk. CCLXVII 8275 | -6/Zion | Found GAL Module 8308 | -6/Zion | Found Relay Coupler [Programmer] 8310 | -6/Zion | Found Relay Coupler [Programmer] 8365 | -6/Zion | Found Prototype Device 8365 | -6/Zion | Identified Bomb Factory No. 2 8477 | -6/Zion | Met Imprinter 8731 | -6/Zion | Identified exit to Proximity Caves 8926 | -6/Zion | Entered Proximity Caves 8926 | -5/Proximity Caves | Accompanied by 4 allies 9018 | -5/Proximity Caves | Spotter reported a threat 9104 | -5/Proximity Caves | Spotted B-75 Beast 9169 | -5/Proximity Caves | Learned Factory garrison access intel 9208 | -5/Proximity Caves | Spotter reported a threat 9257 | -5/Proximity Caves | Attracted the attention of an 0b10 checkpoint 9264 | -5/Proximity Caves | Discovered new exit (range 10) 9266 | -5/Proximity Caves | Identified exit to Factory 9266 | -5/Proximity Caves | Entered Factory 9266 | -5/Factory | Evolved 2 slots: Power x1, Propulsion x1 9267 | -5/Factory | Loaded intel: 26 terminal locations 9268 | -5/Factory | Loaded intel: 4 garrison access locations 9324 | -5/Factory | Discovered new exit (range 8) 9346 | -5/Factory | Discovered new exit (range 16) 9352 | -5/Factory | Identified exit to Upper Caves 9566 | -5/Factory | Search patrols dispatched 9649 | -5/Factory | Build established: Infiltrator-Sprinter 9662 | -5/Factory | Entered Upper Caves 9676 | -5/Upper Caves | Found Alien Artifact 9676 | -5/Upper Caves | Identified Core Expander 9676 | -5/Upper Caves | Installed Core Expander, added new Weapon slot 9679 | -5/Upper Caves | Found DCF Scrap (9 items) 9808 | -5/Upper Caves | Discovered new exit (range 6) 9809 | -5/Upper Caves | Identified exit to Upper Caves 10068 | -5/Upper Caves | Learned Factory stockpile data 10137 | -5/Upper Caves | Attracted the attention of an 0b10 checkpoint 10311 | -5/Upper Caves | Attracted the attention of an 0b10 base 10332 | -5/Upper Caves | Learned Research emergency access door positions 10374 | -5/Upper Caves | Entered another Upper Caves area 10397 | -5/Upper Caves | Learned 4 Factory zone layouts 10399 | -5/Upper Caves | Discovered new exit (range 6) 10400 | -5/Upper Caves | Identified exit to Factory 10493 | -5/Upper Caves | Spotted B-75 Beast 10497 | -5/Upper Caves | Identified exit to Warlord 10686 | -5/Upper Caves | Entered Warlord 10715 | -5/Warlord | Discovered new exit (range 15) 10733 | -5/Warlord | System corruption cleaned by Quarantine Array 10840 | -5/Warlord | Warlord's base attacked by MAIN.C 10878 | -5/Warlord | Met Warlord 10970 | -5/Warlord | Found Prototype Processor 10970 | -5/Warlord | Identified Spectral Analyzer 10999 | -5/Warlord | Met EX-DEC 11004 | -5/Warlord | Found Prototype Launcher 11004 | -5/Warlord | Identified Vortex Catalyst Activator 11007 | -5/Warlord | Found Prototype Energy Cannon 11007 | -5/Warlord | Identified Vortex Cannon 11009 | -5/Warlord | Found Prototype Piercing Weapon 11009 | -5/Warlord | Identified Vortex Lance 11011 | -5/Warlord | Found Vortex Lance 11090 | -5/Warlord | Spotted B-86 Titan 11116 | -5/Warlord | Spotted B-75 Beast 11154 | -5/Warlord | Warlord forces counterattacked 11159 | -5/Warlord | Spotted Striker 11193 | -5/Warlord | Lost 11 allies 11237 | -5/Warlord | Opened side exit 11239 | -5/Warlord | Build established: Ninja 11276 | -5/Warlord | Spotted Striker 11295 | -5/Warlord | Lost 5 allies 11319 | -5/Warlord | Spotted Striker 11324 | -5/Warlord | Identified exit to Proximity Caves 11324 | -5/Warlord | Entered Proximity Caves 11342 | -4/Proximity Caves | Spotted B-86 Titan 11422 | -4/Proximity Caves | Learned Research stockpile data 11549 | -4/Proximity Caves | Discovered exit to Factory (range 9) 11583 | -4/Proximity Caves | Entered Factory 11583 | -4/Factory | Evolved 2 slots: Utility x2 11584 | -4/Factory | Identified exit to Extension 11585 | -4/Factory | Identified exit to Upper Caves 11585 | -4/Factory | Identified exit to Research 11822 | -4/Factory | Identified exit to Armory 12395 | -4/Factory | Lost 3 parts (2n1u) 12598 | -4/Factory | Cargo convoy interrupted 12824 | -4/Factory | Entered Extension 12936 | -4/Extension | Rescued a captive Derelict 12975 | -4/Extension | Identified exit to Cetus 13043 | -4/Extension | Rescued A7 13064 | -4/Extension | Rescued a captive Derelict 13066 | -4/Extension | Rescued a captive Derelict 13181 | -4/Extension | Spotted B-86 Titan 13258 | -4/Extension | Spotted B-86 Titan 13289 | -4/Extension | Allies destroyed B-86 Titan 13291 | -4/Extension | Discovered exit to Research (range 3) 13329 | -4/Extension | Extracted ID and sensor layout for unrecognized location from A7's data core 13376 | -4/Extension | Discovered exit to Research (range 20) 13386 | -4/Extension | Lost 8 allies 13399 | -4/Extension | Lost 7 parts (3n3u1w) 13405 | -4/Extension | Entered Cetus 13409 | -4/Cetus | Spotted Cetus Guard 13409 | -4/Cetus | Spotted Cetus Guard 13412 | -4/Cetus | Spotted Cetus Guard 13413 | -4/Cetus | Spotted Cetus Guard 13418 | -4/Cetus | Released all parts (7) 13429 | -4/Cetus | Discovered exit to Research (range 15) 13438 | -4/Cetus | Core integrity fell below 50% 13448 | -4/Cetus | Core integrity fell below 20% 13650 | -4/Cetus | Build established: Mutant 13714 | -4/Cetus | Discovered new exit (range 16) 13722 | -4/Cetus | Entered Archives 13733 | -4/Archives | Unable to access archive contents 13753 | -4/Archives | Destroyed by Y-72 Warden with Quantum Rifle Last Messages --------------- >>Query(Revision 17) All data regarding this post-deployment revision of the [MAIN.C] neural network was removed from the database during unauthorized system access in 2241. Nothing unique about this revision suggests why it was targeted, but confirmation is impossible without the missing data. Other [Revision Series] records seem to have remained untouched. >>Query(Dr. REDACTED) REDACTED. 13676_ ALERT: Suspicious activity at Terminal C002. Dispatching Investigation squad. 13688_ Connecting with Cetus Manufacturing Controls... 13710_ Imp. Plasma Cutter destroyed. 13713_ Critical hit (Burn: +50). 13714_ EXIT=FOUND LOCATION=UNKNOWN GOAL=ESCAPE 13727_ Archive Hub disabled. 13733_ Connecting with Archive Terminal... 13733_ Current location identified: Archives 13733_ Archive Terminal disabled. Map ----- +----------------------------------------------------+ | ?????????????????????????????????? | | ?????????????????????????????????? | | ?????????????????????????????????? | | ?????????????????????????????????? | | ?????????????????????????????????? | | ?????????????????????????????????? | | ?????????????????????????????????? | | ?????????????????????????????????? | | ?????????????????????????????????? | | ?????????????????????????????????? | | ?????????????????????????????????? | | ?????????????????????????????????? | | ?????????????????????????????????? | | ?????????????????????????????????? | | ?????????????????????????????????? | | ???????????????????? ??????????? | | ??############### ??????????? | | ??# ?????????? | | ??# ?????????? | | ??# ????????? | | ??#####+######### ???????? | | ??# #"""" ?????? | | ??# #"""" ????? | | ??# """ """ ????? | | ??#"""""Y"""# ????? | | ??#""""""@ """"" ????? | | ??#"""""""""#"""" ????? | | ??#"""""""""#"""" ?????? | | ???############## ???????? | | ?????????????????# #"" ????????? | | ?????????????????????????????????? | | ?????????????????????????????????? | | ?????????????????????????????????? | | ?????????????????????????????????? | | ?????????????????????????????????? | | ?????????????????????????????????? | | ?????????????????????????????????? | | ?????????????????????????????????? | | ?????????????????????????????????? | | ?????????????????????????????????? | | ?????????????????????????????????? | | ?????????????????????????????????? | | ?????????????????????????????????? | | ?????????????????????????????????? | | ?????????????????????????????????? | | ?????????????????????????????????? | | | | | | | | | +----------------------------------------------------+ Best States ------------- Heat Dissipation 43 Energy Generation 31 Energy Capacity 608 Matter Stores 300 Matter Capacity 300 Sight Range 24 Robot Scan Range 16 Terrain Scan Range 24 Terrain Scan Density 10 ECM Strength 2 Jamming Range 16 Additional Mass Support 9 Armor Coverage 225 Evasion (%) 66 Melee Accuracy 8 Recoil Reduction 4 Particle Charging 15 Offensive Hacking 12 Defensive Hacking 10 Item Schematics ----------------- Remote Datajack | -8/Recycling | Hacked Imp. Point Defense System | -6/Zion | Archive Angular Momentum Engine | -6/Zion | Archive Antigrav System | -6/Zion | Archive Lyr. Medium Armor Plating | -6/Zion | Archive Hvy. Phase Cannon | -6/Zion | Archive Adv. Signal Interpreter | -6/Zion | Archive Imp. Transmission Jammer | -6/Zion | Archive Proton Cannon | -6/Zion | Archive Adv. Recoil Stabilizer | -6/Zion | Archive IFF Parser | -6/Zion | Archive Adv. Coolant Injector | -6/Zion | Archive Adv. Plasma Cannon | -6/Zion | Archive Imp. Trap Scanner | -6/Zion | Archive System Guard | -6/Zion | Archive Robot Schematics ------------------ R-06 Scavenger | -6/Zion | Archive O-24 Administrator | -6/Zion | Archive D-83 Annihilator | -6/Zion | Archive Fabricated ------------ Nothing Repaired ---------- Seismic Detector | 75% | -10/Materials | Corrupted Seismic Detector | 30% | -6/Factory Imp. Light Armor Plating | 50% | -6/Factory Studied --------- Lance | -5/Factory | Hacked Alien Tech Used ----------------- Core Expander Achievements -------------- Alien Tech Jackpot Not So Scrappy Plot Armor Prison Break Scrappetite Suspicious Challenges ------------ None Game ------ Seed MatterStealthSink Manual? 0 Play Time 06:41:41 Cumulative 37.0 hours Start 2025.11.23 @ 19:54:33 End 2025.11.24 @ 04:39:45 Sessions 1 Manual Loads 0 Difficulty Rogue Special Mode None Game No. 27 Rogue 27 Adventurer 0 Explorer 0 Win Type - Total 1 Types 1/0/0/0/0/0/0/0/0/0 Lore% 33 Gallery% 32 Achievement% 29 Wizard Run 0 Options --------- Layout 0 ASCII 0 Keyboard 1 Movement Arrows Keybinds 0 Fullscreen 2 Font 18/SmallcapsGlow Map View 76x50 Zoom Use 0% Tactical HUD 1 Map Filters NONE Filters NONE Steam 1 RUN: 69fbef3b-fbe2-4753-bf5f-0787b9985070